fUST/lending_fUST_20241231
["ID","MTS","AMOUNT","RATE_DAILY","PERIOD"]
[347234872,1735606248215,-903.9,0.00020524,3]
[347234873,1735606248225,-500.0,0.00020524,3]
[347234874,1735606248234,-500.0,0.00020524,3]
[347234875,1735606248243,-500.0,0.00020524,3]
[347234876,1735606248252,-588.09,0.00020524,3]
[347234877,1735606248262,-500.0,0.00020524,3]
[347234878,1735606248271,-151.0,0.00020525,2]
[347234879,1735606248281,-151.0,0.00020525,2]
[347234880,1735606248291,-224.771737,0.00020525,2]
[347234881,1735606248300,-224.771737,0.00020525,2]
[347234882,1735606248309,-500.0,0.00020525,3]
[347234883,1735606248318,-500.0,0.00020525,3]
[347234884,1735606248327,-431.45048861,0.00020525,3]
[347234885,1735606248337,-5384.17,0.00020525,3]
[347234886,1735606248346,-500.0,0.00020525,3]
[347234887,1735606248354,-500.0,0.00020525,3]
[347234888,1735606248364,-500.0,0.00020525,3]
[347234889,1735606248373,-635.83,0.00020525,3]
[347234890,1735606248383,-4272.87,0.00020526,3]
[347234891,1735606248393,-2211.34462912,0.00020529,3]
[347234892,1735606248403,-1036.38138873,0.00020541,2]
[347234893,1735606248412,-1000.0,0.00020547,3]
[347234894,1735606248421,-1026.51554692,0.00020547,3]
[347234895,1735606248431,-500.0,0.00020573,2]
[347234896,1735606248440,-500.0,0.00020573,2]
[347234897,1735606248449,-500.0,0.00020573,2]
[347234898,1735606248458,-325.06780404,0.00020629,2]
[347234899,1735606248467,-151.0,0.0002065,2]
[347234900,1735606248476,-500.0,0.0002066,4]
[347234901,1735606248485,-5283.75256663,0.00020662,2]
[347234902,1735606248494,-150.708,0.00020703,2]
[347234903,1735606248504,-1905.0,0.00020703,2]
[347234904,1735606248513,-534.0,0.00020703,2]
[347234905,1735606248522,-1036.38138873,0.00020736,2]
[347234906,1735606248530,-172.084838,0.00020776,2]
[347234907,1735606248540,-325.06780404,0.0002078,2]
[347234908,1735606248549,-1200.0,0.00020788,2]
[347234909,1735606248559,-2688.67,0.00020796,3]
[347234910,1735606248568,-500.0,0.00020796,3]
[347234911,1735606248577,-1058.44,0.00020796,3]
[347234912,1735606248586,-764.58,0.00020796,3]
[347234913,1735606248595,-1197.83,0.00020796,3]
[347234914,1735606248604,-821.57,0.00020796,3]
[347234915,1735606248615,-668.48,0.00020796,3]
[347234916,1735606248624,-965.65,0.00020796,3]
[347234917,1735606248635,-1607.8,0.00020796,3]
[347234918,1735606248644,-500.0,0.00020797,3]
[347234919,1735606248654,-500.0,0.00020797,3]
[347234920,1735606248665,-500.0,0.00020797,3]
[347234921,1735606248675,-557.90761671,0.00020797,3]
[347234922,1735606248686,-500.0,0.00020797,3]
[347234923,1735606248696,-537.15,0.00020797,3]
[347234924,1735606248706,-826.79,0.00020797,3]
[347234925,1735606248716,-614.86,0.00020797,3]
[347234926,1735606248726,-809.97,0.00020797,3]
[347234927,1735606248736,-500.0,0.00020797,3]
[347234928,1735606248745,-500.0,0.00020797,3]
[347234929,1735606248755,-500.0,0.00020797,3]
[347234930,1735606248765,-785.52,0.00020797,3]
[347234931,1735606248775,-500.0,0.00020797,3]
[347234932,1735606248785,-500.0,0.00020797,3]
[347234933,1735606248795,-500.0,0.00020797,3]
[347234934,1735606248805,-500.0,0.00020797,3]
[347234935,1735606248815,-500.0,0.00020797,3]
[347234936,1735606248824,-748.22,0.00020797,3]
[347234937,1735606248833,-500.0,0.00020797,3]
[347234938,1735606248843,-876.53,0.00020797,3]
[347234939,1735606248852,-500.0,0.00020797,3]
[347234940,1735606248862,-500.0,0.00020797,3]
[347234941,1735606248872,-794.96,0.00020797,3]
[347234942,1735606248882,-910.39,0.00020797,3]
[347234943,1735606248891,-500.0,0.00020797,3]
[347234944,1735606248901,-609.32,0.00020797,3]
[347234945,1735606248911,-698.11,0.00020797,3]
[347234946,1735606248921,-500.0,0.00020797,3]
[347234947,1735606248933,-500.0,0.00020797,3]
[347234948,1735606248947,-500.0,0.00020797,3]
[347234949,1735606248957,-500.0,0.00020797,3]
[347234950,1735606248967,-500.0,0.00020797,3]
[347234951,1735606248976,-500.0,0.00020797,3]
[347234952,1735606248986,-500.0,0.00020797,3]
[347234953,1735606248996,-684.47,0.00020797,3]
[347234954,1735606249006,-500.0,0.00020797,3]
[347234955,1735606249016,-500.0,0.00020797,3]
[347234956,1735606249025,-500.0,0.00020797,3]
[347234957,1735606249035,-9413.7,0.00020797,3]
[347234958,1735606249045,-500.0,0.00020797,3]
[347234959,1735606249054,-20533.55,0.00020797,3]
[347234960,1735606249064,-500.0,0.00020798,3]
[347234961,1735606249074,-1649.51,0.00020798,3]
[347234962,1735606249083,-527.08941076,0.00020798,3]
[347234963,1735606249093,-903.9,0.00020798,3]
[347234964,1735606249102,-500.0,0.00020798,3]
[347234965,1735606249112,-500.0,0.00020798,3]
[347234966,1735606249121,-500.0,0.00020798,3]
[347234967,1735606249131,-588.09,0.00020798,3]
[347234968,1735606249141,-500.0,0.00020798,3]
[347234969,1735606249150,-151.0,0.00020799,2]
[347234970,1735606249159,-151.0,0.00020799,2]
[347234971,1735606249169,-224.771737,0.00020799,2]
[347234972,1735606249178,-224.771737,0.00020799,2]
[347234973,1735606249188,-500.0,0.00020799,3]
[347234974,1735606249197,-500.0,0.00020799,3]
[347234975,1735606249207,-5384.17,0.00020799,3]
[347234976,1735606249217,-150.92,0.00020799,3]
[347234977,1735606249226,-500.0,0.00020799,3]
[347234978,1735606249236,-500.0,0.00020799,3]
[347234979,1735606249246,-635.83,0.00020799,3]
[347234980,1735606249256,-4272.87,0.000208,3]
[347234981,1735606249266,-500.0,0.00020821,2]
[347234982,1735606249276,-259.0,0.0002085,3]
[347234983,1735606249286,-151.0,0.000209,4]
[347234984,1735606249296,-3000.0,0.00020925,2]
[347234985,1735606249306,-302.038972,0.00020925,2]
[347234986,1735606249315,-302.038972,0.00020925,2]
[347234987,1735606249325,-211.317381,0.00020925,2]
[347234988,1735606249335,-206.992832,0.00020925,2]
[347234989,1735606249344,-206.992832,0.00020925,2]
[347234990,1735606249354,-325.06780404,0.00020931,2]
[347234991,1735606249363,-1036.38138873,0.00020931,2]
[347234992,1735606249373,-2000.0,0.00021,2]
[347234993,1735606249383,-150.0,0.00021,2]
[347234994,1735606249393,-300.0,0.00021,10]
[347234995,1735606249402,-255.0,0.00021,6]
[347234996,1735606249411,-255.0,0.00021,7]
[347234997,1735606249420,-255.0,0.00021,8]
[347234998,1735606249430,-500.0,0.00021014,2]
[347234999,1735606249447,-151.0,0.00021018,2]
[347235000,1735606249456,-151.0,0.00021018,2]
[347235001,1735606249466,-151.0,0.00021018,2]
[347235002,1735606249476,-151.0,0.00021018,2]
[347235003,1735606249485,-151.0,0.00021018,2]
[347235004,1735606249494,-151.0,0.00021018,2]
[347235005,1735606249503,-224.771737,0.00021018,2]
[347235006,1735606249512,-224.771737,0.00021018,2]
[347235007,1735606249521,-224.771737,0.00021018,2]
[347235008,1735606249530,-224.771737,0.00021018,2]
[347235009,1735606249540,-224.771737,0.00021018,2]
[347235010,1735606249549,-224.771737,0.00021018,2]
[347235011,1735606249558,-161.10895373,0.00021023,2]
[347235012,1735606249567,-151.0,0.00021024,2]
[347235013,1735606249576,-151.0,0.00021024,2]
[347235014,1735606249586,-224.771737,0.00021024,2]
[347235015,1735606249595,-224.771737,0.00021024,2]
[347235016,1735606249605,-235.929866,0.00021025,2]
[347235017,1735606249614,-235.929866,0.00021025,2]
[347235018,1735606249623,-235.929866,0.00021025,2]
[347235019,1735606249633,-235.929866,0.00021025,2]
[347235020,1735606249642,-235.929866,0.00021025,2]
[347235021,1735606249651,-235.929866,0.00021025,2]
[347235022,1735606249661,-235.929866,0.00021025,2]
[347235023,1735606249670,-235.929866,0.00021025,2]
[347235024,1735606249679,-235.929866,0.00021025,2]
[347235025,1735606249756,-235.929866,0.00021025,2]
[347235026,1735606249766,-235.929866,0.00021025,2]
[347235027,1735606249775,-235.929868,0.00021025,2]
[347235028,1735606249785,-151.0,0.00021025,2]
[347235029,1735606249794,-151.0,0.00021025,2]
[347235030,1735606249803,-151.0,0.00021025,2]
[347235031,1735606249812,-151.0,0.00021025,2]
[347235032,1735606249822,-151.0,0.00021025,2]
[347235033,1735606249831,-151.0,0.00021025,2]
[347235034,1735606249840,-297.412884,0.00021025,2]
[347235035,1735606249850,-775.987108,0.00021025,2]
[347235036,1735606249859,-775.987108,0.00021025,2]
[347235037,1735606249868,-775.987108,0.00021025,2]
[347235038,1735606249878,-775.987108,0.00021025,2]
[347235039,1735606249887,-775.987108,0.00021025,2]
[347235040,1735606249897,-775.987108,0.00021025,2]
[347235041,1735606249906,-775.987108,0.00021025,2]
[347235042,1735606249915,-775.987102,0.00021025,2]
[347235043,1735606249924,-151.0,0.00021025,2]
[347235044,1735606249936,-151.0,0.00021025,2]
[347235045,1735606249946,-151.0,0.00021025,2]
[347235046,1735606249956,-151.0,0.00021025,2]
[347235047,1735606249965,-151.0,0.00021025,2]
[347235048,1735606249975,-151.0,0.00021025,2]
[347235049,1735606249984,-151.0,0.00021025,2]
[347235050,1735606249993,-151.0,0.00021025,2]
[347235051,1735606250002,-151.0,0.00021025,2]
[347235052,1735606250012,-151.0,0.00021025,2]
[347235053,1735606250021,-151.0,0.00021025,2]
[347235054,1735606250031,-242.733885,0.00021025,2]
[347235055,1735606250040,-224.771737,0.00021025,2]
[347235056,1735606250050,-224.771737,0.00021025,2]
[347235057,1735606250059,-224.771737,0.00021025,2]
[347235058,1735606250068,-224.771737,0.00021025,2]
[347235059,1735606250077,-224.771737,0.00021025,2]
[347235060,1735606250086,-224.771737,0.00021025,2]
[347235061,1735606250095,-224.771737,0.00021025,2]
[347235062,1735606250104,-224.771736,0.00021025,2]
[347235063,1735606250113,-151.0,0.00021025,2]
[347235064,1735606250122,-151.0,0.00021025,2]
[347235065,1735606250131,-151.0,0.00021025,2]
[347235066,1735606250140,-151.0,0.00021025,2]
[347235067,1735606250149,-151.0,0.00021025,2]
[347235068,1735606250158,-205.535248,0.00021025,2]
[347235069,1735606250167,-151.0,0.00021025,2]
[347235070,1735606250176,-151.0,0.00021025,2]
[347235071,1735606250186,-151.0,0.00021025,2]
[347235072,1735606250195,-208.056078,0.00021025,2]
[347235073,1735606250204,-151.0,0.00021025,2]
[347235074,1735606250213,-151.0,0.00021025,2]
[347235075,1735606250222,-151.0,0.00021025,2]
[347235076,1735606250231,-151.0,0.00021025,2]
[347235077,1735606250240,-151.0,0.00021025,2]
[347235078,1735606250249,-151.0,0.00021025,2]
[347235079,1735606250259,-151.0,0.00021025,2]
[347235080,1735606250267,-151.0,0.00021025,2]
[347235081,1735606250277,-151.0,0.00021025,2]
[347235082,1735606250286,-151.0,0.00021025,2]
[347235083,1735606250295,-151.0,0.00021025,2]
[347235084,1735606250304,-151.0,0.00021025,2]
[347235085,1735606250314,-193.841155,0.00021025,2]
[347235086,1735606250323,-1012.435966,0.00021025,2]
[347235087,1735606250332,-1012.435966,0.00021025,2]
[347235088,1735606250342,-1012.435966,0.00021025,2]
[347235089,1735606250351,-1012.435966,0.00021025,2]
[347235090,1735606250360,-1012.435966,0.00021025,2]
[347235091,1735606250369,-1012.435966,0.00021025,2]
[347235092,1735606250379,-1012.435966,0.00021025,2]
[347235093,1735606250388,-1012.435966,0.00021025,2]
[347235094,1735606250396,-1012.435966,0.00021025,2]
[347235095,1735606250405,-1012.435966,0.00021025,2]
[347235096,1735606250414,-1012.435966,0.00021025,2]
[347235097,1735606250424,-1012.435966,0.00021025,2]
[347235098,1735606250434,-1012.435966,0.00021025,2]
[347235099,1735606250444,-1012.435966,0.00021025,2]
[347235100,1735606250453,-1012.435966,0.00021025,2]
[347235101,1735606250462,-1012.435966,0.00021025,2]
[347235102,1735606250471,-1012.435966,0.00021025,2]
[347235103,1735606250481,-1012.435966,0.00021025,2]
[347235104,1735606250490,-1012.435966,0.00021025,2]
[347235105,1735606250500,-1012.435974,0.00021025,2]
[347235106,1735606250509,-864.707121,0.00021025,2]
[347235107,1735606250518,-864.707121,0.00021025,2]
[347235108,1735606250527,-864.70712,0.00021025,2]
[347235109,1735606250536,-212.190917,0.00021025,2]
[347235110,1735606250546,-212.190917,0.00021025,2]
[347235111,1735606250555,-212.190917,0.00021025,2]
[347235112,1735606250564,-212.190917,0.00021025,2]
[347235113,1735606250574,-212.190917,0.00021025,2]
[347235114,1735606250583,-212.190917,0.00021025,2]
[347235115,1735606250592,-212.190917,0.00021025,2]
[347235116,1735606250601,-212.190917,0.00021025,2]
[347235117,1735606250611,-212.190917,0.00021025,2]
[347235118,1735606250620,-212.190917,0.00021025,2]
[347235119,1735606250629,-212.190917,0.00021025,2]
[347235120,1735606250638,-212.190917,0.00021025,2]
[347235121,1735606250648,-212.190917,0.00021025,2]
[347235122,1735606250657,-212.190917,0.00021025,2]
[347235123,1735606250666,-212.190917,0.00021025,2]
[347235124,1735606250675,-212.190917,0.00021025,2]
[347235125,1735606250686,-212.190917,0.00021025,2]
[347235126,1735606250696,-212.190917,0.00021025,2]
[347235127,1735606250705,-212.190917,0.00021025,2]
[347235128,1735606250715,-212.190921,0.00021025,2]
[347235129,1735606250725,-170.924747,0.00021025,2]
[347235130,1735606250734,-170.924747,0.00021025,2]
[347235131,1735606250744,-170.924747,0.00021025,2]
[347235132,1735606250753,-170.924747,0.00021025,2]
[347235133,1735606250763,-170.924747,0.00021025,2]
[347235134,1735606250772,-170.924747,0.00021025,2]
[347235135,1735606250782,-170.924747,0.00021025,2]
[347235136,1735606250791,-170.924747,0.00021025,2]
[347235137,1735606250800,-170.924747,0.00021025,2]
[347235138,1735606250810,-170.924747,0.00021025,2]
[347235139,1735606250819,-170.924747,0.00021025,2]
[347235140,1735606250828,-170.924747,0.00021025,2]
[347235141,1735606250836,-170.924747,0.00021025,2]
[347235142,1735606250845,-170.924747,0.00021025,2]
[347235143,1735606250856,-170.924747,0.00021025,2]
[347235144,1735606250866,-170.924747,0.00021025,2]
[347235145,1735606250876,-170.924747,0.00021025,2]
[347235146,1735606250885,-170.924747,0.00021025,2]
[347235147,1735606250895,-170.924747,0.00021025,2]
[347235148,1735606250904,-170.924743,0.00021025,2]
[347235149,1735606250913,-151.0,0.00021025,2]
[347235150,1735606250923,-151.0,0.00021025,2]
[347235151,1735606250933,-151.0,0.00021025,2]
[347235152,1735606250945,-151.0,0.00021025,2]
[347235153,1735606250954,-151.0,0.00021025,2]
[347235154,1735606250963,-151.0,0.00021025,2]
[347235155,1735606250973,-151.0,0.00021025,2]
[347235156,1735606250983,-151.0,0.00021025,2]
[347235157,1735606250993,-151.0,0.00021025,2]
[347235158,1735606251003,-151.0,0.00021025,2]
[347235159,1735606251018,-151.0,0.00021025,2]
[347235160,1735606251029,-151.0,0.00021025,2]
[347235161,1735606251039,-470.896191,0.00021025,2]
[347235162,1735606251048,-470.896191,0.00021025,2]
[347235163,1735606251057,-685.615897,0.00021025,2]
[347235164,1735606251066,-685.615897,0.00021025,2]
[347235165,1735606251076,-685.615897,0.00021025,2]
[347235166,1735606251085,-685.615897,0.00021025,2]
[347235167,1735606251095,-685.615897,0.00021025,2]
[347235168,1735606251104,-685.615897,0.00021025,2]
[347235169,1735606251114,-685.615897,0.00021025,2]
[347235170,1735606251123,-685.615897,0.00021025,2]
[347235171,1735606251132,-685.615897,0.00021025,2]
[347235172,1735606251141,-685.615897,0.00021025,2]
[347235173,1735606251151,-685.615897,0.00021025,2]
[347235174,1735606251160,-685.615897,0.00021025,2]
[347235175,1735606251169,-685.615897,0.00021025,2]
[347235176,1735606251178,-685.615897,0.00021025,2]
[347235177,1735606251190,-685.615897,0.00021025,2]
[347235178,1735606251200,-685.615897,0.00021025,2]
[347235179,1735606251211,-685.615897,0.00021025,2]
[347235180,1735606251220,-685.615897,0.00021025,2]
[347235181,1735606251229,-685.615897,0.00021025,2]
[347235182,1735606251239,-685.615889,0.00021025,2]
[347235183,1735606251248,-151.0,0.00021025,2]
[347235184,1735606251257,-151.0,0.00021025,2]
[347235185,1735606251266,-151.0,0.00021025,2]
[347235186,1735606251275,-153.840585,0.00021025,2]
[347235187,1735606251285,-444.714834,0.00021025,2]
[347235188,1735606251294,-444.714834,0.00021025,2]
[347235189,1735606251304,-151.0,0.00021025,2]
[347235190,1735606251313,-151.0,0.00021025,2]
[347235191,1735606251322,-151.0,0.00021025,2]
[347235192,1735606251331,-151.0,0.00021025,2]
[347235193,1735606251340,-151.0,0.00021025,2]
[347235194,1735606251350,-151.0,0.00021025,2]
[347235195,1735606251359,-151.0,0.00021025,2]
[347235196,1735606251438,-151.0,0.00021025,2]
[347235197,1735606251447,-151.0,0.00021025,2]
[347235198,1735606251457,-151.0,0.00021025,2]
[347235199,1735606251467,-151.0,0.00021025,2]
[347235200,1735606251476,-151.0,0.00021025,2]
[347235201,1735606251485,-151.0,0.00021025,2]
[347235202,1735606251495,-151.0,0.00021025,2]
[347235203,1735606251505,-151.0,0.00021025,2]
[347235204,1735606251514,-151.0,0.00021025,2]
[347235205,1735606251523,-151.0,0.00021025,2]
[347235206,1735606251532,-293.979102,0.00021025,2]
[347235207,1735606251542,-409.840255,0.00021025,2]
[347235208,1735606251552,-409.840255,0.00021025,2]
[347235209,1735606251561,-409.840255,0.00021025,2]
[347235210,1735606251570,-409.840255,0.00021025,2]
[347235211,1735606251579,-409.840255,0.00021025,2]
[347235212,1735606251588,-409.840255,0.00021025,2]
[347235213,1735606251597,-409.840255,0.00021025,2]
[347235214,1735606251606,-409.840255,0.00021025,2]
[347235215,1735606251615,-409.840255,0.00021025,2]
[347235216,1735606251624,-409.840255,0.00021025,2]
[347235217,1735606251633,-409.840255,0.00021025,2]
[347235218,1735606251643,-409.840255,0.00021025,2]
[347235219,1735606251652,-409.840255,0.00021025,2]
[347235220,1735606251662,-409.840255,0.00021025,2]
[347235221,1735606251672,-409.840255,0.00021025,2]
[347235222,1735606251682,-409.840255,0.00021025,2]
[347235223,1735606251692,-409.840255,0.00021025,2]
[347235224,1735606251702,-409.840255,0.00021025,2]
[347235225,1735606251711,-409.840255,0.00021025,2]
[347235226,1735606251721,-409.840249,0.00021025,2]
[347235227,1735606251730,-151.0,0.00021025,2]
[347235228,1735606251740,-379.983078,0.00021025,2]
[347235229,1735606251749,-379.983078,0.00021025,2]
[347235230,1735606251759,-379.983078,0.00021025,2]
[347235231,1735606251768,-379.983078,0.00021025,2]
[347235232,1735606251778,-379.983078,0.00021025,2]
[347235233,1735606251787,-379.983078,0.00021025,2]
[347235234,1735606251797,-379.983078,0.00021025,2]
[347235235,1735606251807,-379.983078,0.00021025,2]
[347235236,1735606251817,-379.983078,0.00021025,2]
[347235237,1735606251826,-379.983078,0.00021025,2]
[347235238,1735606251835,-379.983078,0.00021025,2]
[347235239,1735606251845,-379.983078,0.00021025,2]
[347235240,1735606251854,-379.983078,0.00021025,2]
[347235241,1735606251863,-379.983078,0.00021025,2]
[347235242,1735606251873,-379.983078,0.00021025,2]
[347235243,1735606251882,-379.983078,0.00021025,2]
[347235244,1735606251892,-379.983078,0.00021025,2]
[347235245,1735606251902,-379.983078,0.00021025,2]
[347235246,1735606251911,-379.983078,0.00021025,2]
[347235247,1735606251920,-379.983082,0.00021025,2]
[347235248,1735606251930,-151.0,0.00021025,2]
[347235249,1735606251942,-151.0,0.00021025,2]
[347235250,1735606251952,-151.0,0.00021025,2]
[347235251,1735606251961,-151.0,0.00021025,2]
[347235252,1735606251971,-151.0,0.00021025,2]
[347235253,1735606251981,-151.0,0.00021025,2]
[347235254,1735606251990,-151.0,0.00021025,2]
[347235255,1735606251999,-151.0,0.00021025,2]
[347235256,1735606252009,-151.0,0.00021025,2]
[347235257,1735606252019,-151.0,0.00021025,2]
[347235258,1735606252028,-151.0,0.00021025,2]
[347235259,1735606252037,-151.0,0.00021025,2]
[347235260,1735606252046,-151.0,0.00021025,2]
[347235261,1735606252056,-151.0,0.00021025,2]
[347235262,1735606252066,-151.0,0.00021025,2]
[347235263,1735606252074,-151.0,0.00021025,2]
[347235264,1735606252084,-176.101101,0.00021025,2]
[347235265,1735606252093,-150.23,0.00021025,2]
[347235266,1735606252102,-439.846546,0.00021025,2]
[347235267,1735606252111,-439.846546,0.00021025,2]
[347235268,1735606252121,-439.846546,0.00021025,2]
[347235269,1735606252130,-439.846546,0.00021025,2]
[347235270,1735606252139,-439.846546,0.00021025,2]
[347235271,1735606252149,-439.846546,0.00021025,2]
[347235272,1735606252158,-439.846546,0.00021025,2]
[347235273,1735606252167,-439.846546,0.00021025,2]
[347235274,1735606252176,-439.846546,0.00021025,2]
[347235275,1735606252186,-439.846546,0.00021025,2]
[347235276,1735606252195,-439.846546,0.00021025,2]
[347235277,1735606252204,-439.846546,0.00021025,2]
[347235278,1735606252214,-439.846546,0.00021025,2]
[347235279,1735606252223,-439.846546,0.00021025,2]
[347235280,1735606252232,-439.846546,0.00021025,2]
[347235281,1735606252242,-439.846546,0.00021025,2]
[347235282,1735606252251,-439.846546,0.00021025,2]
[347235283,1735606252260,-439.846546,0.00021025,2]
[347235284,1735606252270,-439.846546,0.00021025,2]
[347235285,1735606252279,-439.846538,0.00021025,2]
[347235286,1735606252288,-150.23,0.00021025,10]
[347235287,1735606252298,-151.0,0.00021025,2]
[347235288,1735606252306,-151.0,0.00021025,2]
[347235289,1735606252316,-151.0,0.00021025,2]
[347235290,1735606252324,-151.0,0.00021025,2]
[347235291,1735606252334,-302.038972,0.00021025,2]
[347235292,1735606252343,-302.038972,0.00021025,2]
[347235293,1735606252352,-206.992832,0.00021025,2]
[347235294,1735606252361,-206.992832,0.00021025,2]
[347235295,1735606252370,-500.0,0.0002103,2]
[347235296,1735606252379,-211.38981051,0.0002103,2]
[347235297,1735606252388,-640.26630981,0.0002103,2]
[347235298,1735606252397,-3000.0,0.0002103,2]
[347235299,1735606252406,-470.896191,0.0002103,2]
[347235300,1735606252415,-470.896191,0.0002103,2]
[347235301,1735606252424,-470.896191,0.0002103,2]
[347235302,1735606252433,-470.896191,0.0002103,2]
[347235303,1735606252442,-470.896191,0.0002103,2]
[347235304,1735606252452,-470.896191,0.0002103,2]
[347235305,1735606252461,-470.896191,0.0002103,2]
[347235306,1735606252470,-470.896191,0.0002103,2]
[347235307,1735606252479,-470.896191,0.0002103,2]
[347235308,1735606252488,-470.896191,0.0002103,2]
[347235309,1735606252498,-470.896191,0.0002103,2]
[347235310,1735606252507,-470.896191,0.0002103,2]
[347235311,1735606252516,-470.896191,0.0002103,2]
[347235312,1735606252525,-470.896191,0.0002103,2]
[347235313,1735606252535,-470.896191,0.0002103,2]
[347235314,1735606252545,-470.896191,0.0002103,2]
[347235315,1735606252554,-470.896191,0.0002103,2]
[347235316,1735606252563,-470.896191,0.0002103,2]
[347235317,1735606252572,-151.0,0.0002103,2]
[347235318,1735606252581,-151.0,0.0002103,2]
[347235319,1735606252591,-151.0,0.0002103,2]
[347235320,1735606252599,-151.0,0.0002103,2]
[347235321,1735606252609,-151.0,0.0002103,2]
[347235322,1735606252618,-151.0,0.0002103,2]
[347235323,1735606252627,-151.0,0.0002103,2]
[347235324,1735606252635,-151.0,0.0002103,2]
[347235325,1735606252644,-151.0,0.0002103,2]
[347235326,1735606252653,-216.225323,0.0002103,2]
[347235327,1735606252662,-444.714834,0.0002103,2]
[347235328,1735606252671,-444.714834,0.0002103,2]
[347235329,1735606252680,-444.714834,0.0002103,2]
[347235330,1735606252690,-444.714834,0.0002103,2]
[347235331,1735606252698,-444.714834,0.0002103,2]
[347235332,1735606252707,-444.714834,0.0002103,2]
[347235333,1735606252716,-444.714834,0.0002103,2]
[347235334,1735606252726,-444.714834,0.0002103,2]
[347235335,1735606252735,-444.714834,0.0002103,2]
[347235336,1735606252744,-444.714834,0.0002103,2]
[347235337,1735606252754,-444.714834,0.0002103,2]
[347235338,1735606252763,-444.714834,0.0002103,2]
[347235339,1735606252772,-444.714834,0.0002103,2]
[347235340,1735606252781,-444.714834,0.0002103,2]
[347235341,1735606252791,-444.714834,0.0002103,2]
[347235342,1735606252799,-444.714834,0.0002103,2]
[347235343,1735606252808,-444.714834,0.0002103,2]
[347235344,1735606252818,-444.714826,0.0002103,2]
[347235345,1735606252827,-163.018799,0.0002103,2]
[347235346,1735606252837,-151.0,0.0002103,2]
[347235347,1735606252846,-161.173248,0.0002103,2]
[347235348,1735606252855,-151.0,0.0002103,2]
[347235349,1735606252864,-151.342416,0.0002103,2]
[347235350,1735606252874,-151.0,0.0002103,2]
[347235351,1735606252883,-151.0,0.0002103,2]
[347235352,1735606252892,-274.30775557,0.0002103,2]
[347235353,1735606252967,-1561.45552423,0.0002103,2]
[347235354,1735606252978,-254302.33558394,0.00021031,10]
[347235355,1735606252999,-337.58682912,0.00021031,10]
[347235356,1735606253011,-9093.03744725,0.00021031,10]
[347235357,1735606253028,-981.07247843,0.00021031,10]
[347235363,1735607135137,-199.686853,0.00013833,2]
[347235364,1735607135159,-199.686853,0.00013973,2]
[347235365,1735607135179,-166.494948,0.00019178,2]
[347235366,1735607135204,-194.08,0.00019973,3]
[347235367,1735607135226,-1173.82,0.00019973,3]
[347235368,1735607135249,-887.15,0.00019973,3]
[347235369,1735607135272,-500.0,0.00019973,3]
[347235370,1735607135295,-934.64,0.00019973,3]
[347235371,1735607135317,-1377.83,0.00019973,3]
[347235372,1735607135432,-1054.7,0.00019973,3]
[347235373,1735607135454,-262.32,0.00019973,3]
[347235374,1735607135476,-1830.6,0.00019973,3]
[347235375,1735607135498,-557.06,0.00019973,3]
[347235376,1735607135519,-538.63,0.00019973,3]